bitfinex/quotes_SOLUSD_20241113
["timestamp","ask_amount","ask_price","bid_price","bid_amount"]
[1731462778364,4.7548,210.31,210.24,23.8823054]
[1731462778567,23.8823054,210.29,210.21,23.8823054]
[1731462779656,28.6378054,210.29,210.22,23.8823054]
[1731462780246,20.0,210.3,210.24,23.8823054]
[1731462780448,4.755,210.31,210.25,23.8823054]
[1731462780663,39.0516054,210.37,210.29,23.8823054]
[1731462781165,23.8823054,210.35,210.26,23.8823054]
[1731462781345,15.1693,210.37,210.25,23.8823054]
[1731462781346,23.8823054,210.33,210.25,23.8823054]
[1731462781548,23.8823054,210.34,210.26,23.8823054]
[1731462781748,23.8823054,210.31,210.24,38.8651054]
[1731462782154,4.7537,210.36,210.2,23.8823054]
[1731462782155,23.8823054,210.28,210.2,23.8823054]
[1731462782444,23.8823054,210.31,210.23,23.8823054]
[1731462782663,23.8823054,210.36,210.29,23.8823054]
[1731462782971,15.1693,210.37,210.31,23.8823054]
[1731462783147,43.8052054,210.37,210.3,23.8823054]
[1731462783349,4.7536,210.37,210.3,23.8823054]
[1731462783656,23.8823054,210.38,210.25,16.1047]
[1731462783657,23.8823054,210.38,210.31,23.8823054]
[1731462783963,4.7526,210.41,210.35,23.8823054]
[1731462784370,28.6349054,210.41,210.34,23.8823054]
[1731462784553,4.7526,210.41,210.35,23.8823054]
[1731462784943,4.7522,210.43,210.37,23.8823054]
[1731462785345,4.7514,210.47,210.41,23.8823054]
[1731462785554,4.7514,210.47,210.4,23.8823054]
[1731462786649,23.8823054,210.49,210.41,23.8823054]
[1731462786848,34.6443054,210.5,210.39,14.9721]
[1731462787068,23.8823054,210.49,210.41,23.8823054]
[1731462787972,28.6333054,210.49,210.41,23.8823054]
[1731462788373,28.6328054,210.51,210.43,23.8823054]
[1731462789452,28.6323054,210.53,210.45,23.8823054]
[1731462789754,4.7491,210.57,210.5,23.8823054]
[1731462790167,28.6314054,210.57,210.49,23.8823054]
[1731462790489,23.8823054,210.55,210.47,38.8482054]
[1731462790771,23.8823054,210.56,210.48,23.8823054]
[1731462791270,28.6316054,210.56,210.48,23.8823054]
[1731462791479,28.6316054,210.56,210.49,23.8823054]
[1731462792253,23.8823054,210.5,210.42,10.6925]
[1731462792455,23.8823054,210.5,210.43,23.8823054]
[1731462792767,23.8823054,210.51,210.44,23.8823054]
[1731462793076,4.7493,210.56,210.48,23.8823054]
[1731462793259,20.0,210.58,210.48,23.8823054]
[1731462793461,23.8823054,210.55,210.48,23.8823054]
[1731462793659,23.8823054,210.55,210.47,28.1583054]
[1731462793980,23.8823054,210.52,210.45,4.2764]
[1731462794149,23.8823054,210.52,210.45,28.1587054]
[1731462794476,23.8823054,210.53,210.46,23.8823054]
[1731462794780,23.8823054,210.55,210.47,23.8823054]
[1731462794950,23.8823054,210.57,210.49,23.8823054]
[1731462795150,23.8823054,210.53,210.45,28.1587054]
[1731462795477,23.8823054,210.53,210.45,38.8500054]
[1731462795678,23.8823054,210.5,210.42,4.277]
[1731462795857,23.8823054,210.47,210.4,44.8889054]
[1731462796178,23.8823054,210.45,210.38,28.1601054]
[1731462796362,23.8823054,210.48,210.41,23.8823054]
[1731462796675,0.82492677,210.68,210.51,21.6638]
[1731462796855,4.00037073,210.65,210.51,21.6638]
[1731462797476,16.6117,210.7,210.52,38.739784]
[1731462797671,16.6117,210.7,210.54,23.776884]
[1731462797860,23.8823054,210.67,210.59,23.8823054]
[1731462798661,4.746,210.7,210.63,23.8823054]
[1731462798861,4.746,210.7,210.63,38.61822371]
[1731462799062,0.4800341,210.71,210.65,38.61822371]
[1731462799879,5.2259341,210.71,210.65,38.61822371]
[1731462800377,0.4800341,210.71,210.67,38.61822371]
[1731462801265,0.4800341,210.71,210.65,38.61822371]
[1731462801481,0.4800341,210.71,210.64,38.61822371]
[1731462801658,0.4800341,210.71,210.67,38.61822371]
[1731462802372,0.4800341,210.71,210.64,38.61822371]
[1731462802678,20.0,210.7,210.64,38.61822371]
[1731462802871,20.0,210.7,210.65,38.61822371]
[1731462803066,0.4800341,210.71,210.67,38.61822371]
[1731462803389,0.4800341,210.71,210.68,38.61822371]
[1731462803877,0.4800341,210.71,210.69,38.61822371]
[1731462804074,0.4800341,210.71,210.68,4.2717]
[1731462804262,0.4800341,210.71,210.68,42.88992371]
[1731462804879,0.4800341,210.71,210.66,38.61822371]
[1731462805058,0.4800341,210.71,210.67,38.61822371]
[1731462807263,5.2260341,210.71,210.64,53.57252371]
[1731462807457,20.4800341,210.71,210.65,38.61822371]
[1731462807659,58.61822371,210.68,210.6,38.61822371]
[1731462807860,20.0,210.66,210.54,14.961]
[1731462808271,20.0,210.66,210.57,38.61822371]
[1731462808477,20.0,210.63,210.57,38.61822371]
[1731462809180,63.36592371,210.63,210.56,42.89252371]
[1731462809383,4.7477,210.63,210.56,42.89252371]
[1731462809587,24.7477,210.63,210.56,42.89252371]
[1731462809760,63.36592371,210.63,210.56,38.61822371]
[1731462809967,38.61822371,210.62,210.54,49.30452371]
[1731462810175,63.36592371,210.63,210.56,38.61822371]
[1731462810365,63.36592371,210.63,210.55,38.61822371]
[1731462810562,38.61822371,210.6,210.53,38.61822371]
[1731462810884,38.61822371,210.54,210.42,6.6606]
[1731462811057,38.61822371,210.53,210.46,38.61822371]
[1731462811262,16.444,210.56,210.51,38.61822371]
[1731462811263,20.0,210.55,210.51,38.61822371]
[1731462811464,20.0,210.55,210.42,21.6304]
[1731462811658,38.61822371,210.53,210.45,38.61822371]
[1731462811886,20.0,210.5,210.43,38.61822371]
[1731462812678,38.61822371,210.49,210.42,38.61822371]
[1731462812981,20.0,210.46,210.39,38.61822371]
[1731462813192,20.0,210.46,210.4,38.61822371]
[1731462813861,58.61822371,210.46,210.38,38.61822371]
[1731462814081,38.61822371,210.45,210.37,49.31332371]
[1731462814276,38.61822371,210.42,210.35,38.61822371]
[1731462814487,58.61822371,210.43,210.35,38.61822371]
[1731462814985,4.7523,210.42,210.35,38.61822371]
[1731462815366,4.7523,210.42,210.36,38.61822371]
[1731462815681,20.0,210.46,210.41,38.61822371]
[1731462815884,20.0,210.46,210.42,38.61822371]
[1731462816192,6.2479,210.47,210.43,38.61822371]
[1731462816373,38.61822371,210.47,210.4,38.61822371]
[1731462816689,4.8511,210.48,210.31,4.2792]
[1731462816986,4.8511,210.48,210.29,10.6994]
[1731462816987,12.0776,210.48,210.29,10.6994]
[1731462817366,11.9776,210.48,210.29,10.6994]
[1731462817574,38.61822371,210.41,210.33,38.61822371]
[1731462817780,58.61822371,210.38,210.3,38.61822371]
[1731462817978,38.61822371,210.37,210.3,38.61822371]
[1731462818288,6.1788,210.4,210.35,38.61822371]
[1731462819565,20.0,210.39,210.34,53.59362371]
[1731462819764,20.0,210.39,210.34,10.6968]
[1731462820164,20.0,210.39,210.35,38.61822371]
[1731462820364,20.0,210.39,210.37,38.61822371]
[1731462820578,20.0,210.39,210.35,38.61822371]
[1731462820770,20.0,210.39,210.34,14.9755]
[1731462820970,20.0,210.39,210.34,38.80910676]
[1731462821492,20.0,210.39,210.36,23.83360676]
[1731462821875,6.2781,210.46,210.38,23.83360676]
[1731462822069,16.5746,210.48,210.44,23.83360676]
[1731462822376,16.5746,210.48,210.33,23.876884]
[1731462822579,16.5746,210.48,210.42,23.83360676]
[1731462823278,6.2781,210.51,210.45,23.83360676]
[1731462823483,30.11170676,210.51,210.44,23.83360676]
[1731462823798,30.11170676,210.51,210.45,4.2765]
[1731462823992,6.2781,210.51,210.45,4.2765]
[1731462824175,21.1502,210.54,210.47,23.83360676]
[1731462824377,23.83360676,210.53,210.45,34.52490676]
[1731462824577,23.83360676,210.5,210.43,4.2768]
[1731462824775,23.83360676,210.51,210.44,23.83360676]
[1731462825096,23.83360676,210.53,210.46,23.83360676]
[1731462825407,21.1502,210.54,210.43,14.9691]
[1731462825408,16.4004,210.54,210.48,23.83360676]
[1731462825691,16.4004,210.54,210.48,28.10930676]
[1731462826399,16.4004,210.54,210.5,23.83360676]
[1731462826697,51.13000676,210.6,210.51,23.83360676]
[1731462827782,51.13000676,210.6,210.52,4.2751]
[1731462827981,20.0,210.59,210.52,4.2751]
[1731462829389,20.0,210.59,210.55,23.83360676]
[1731462829573,46.38150676,210.6,210.52,34.52140676]
[1731462829778,51.12990676,210.6,210.52,38.79650676]
[1731462830272,15.895,210.6,210.54,23.83360676]
[1731462830477,23.83360676,210.64,210.56,23.83360676]
[1731462831083,23.83360676,210.62,210.54,23.83360676]
[1731462831282,23.83360676,210.58,210.52,10.6878]
[1731462831496,23.83360676,210.58,210.5,23.83360676]
[1731462831677,43.83360676,210.57,210.49,23.83360676]
[1731462831874,23.83360676,210.54,210.47,28.10970676]
[1731462832077,20.0,210.53,210.47,38.80000676]
[1731462832399,20.0,210.53,210.48,23.83360676]
[1731462832585,20.0,210.54,210.48,23.83360676]
[1731462833088,20.0,210.54,210.47,38.80000676]
[1731462834595,15.83721106,210.61,210.47,38.80000676]
[1731462834596,20.0,210.56,210.49,23.83360676]
[1731462835296,23.83360676,210.55,210.47,38.80000676]
[1731462835599,20.0,210.54,210.47,38.80000676]
[1731462836799,20.0,210.56,210.51,23.83360676]
[1731462837011,20.0,210.58,210.51,23.83360676]
[1731462837381,23.83360676,210.61,210.53,23.83360676]
[1731462837695,23.83360676,210.61,210.54,4.2747]
[1731462837899,28.58180676,210.61,210.53,34.52070676]
[1731462838091,23.83360676,210.59,210.53,10.6871]
[1731462838692,20.0,210.56,210.49,38.79840676]
[1731462839094,20.0,210.6,210.53,23.83360676]
[1731462839982,20.0,210.58,210.52,4.2749]
[1731462840504,4.7483,210.6,210.53,23.83360676]
[1731462840693,20.0,210.6,210.55,23.83360676]
[1731462840901,4.748,210.62,210.55,23.83360676]
[1731462841081,28.58130676,210.63,210.57,23.83360676]
[1731462841394,28.58130676,210.63,210.55,23.83360676]
[1731462841979,23.83360676,210.63,210.57,23.83360676]
[1731462842318,23.83360676,210.63,210.56,14.96]
[1731462842482,20.0,210.62,210.56,14.96]
[1731462842883,23.83360676,210.59,210.51,34.52150676]
[1731462843188,23.83360676,210.53,210.45,23.83360676]
[1731462843386,43.83360676,210.49,210.43,10.6922]
[1731462843589,43.83360676,210.49,210.41,28.11090676]
[1731462843995,23.83360676,210.47,210.41,23.83360676]
[1731462844192,20.0,210.42,210.36,4.2782]
[1731462844393,23.83360676,210.41,210.35,4.2784]
[1731462844599,43.83360676,210.42,210.35,28.11200676]
[1731462845683,23.83360676,210.44,210.36,23.83360676]
[1731462845889,23.83360676,210.47,210.4,23.83360676]
[1731462846101,28.58410676,210.51,210.44,23.83360676]
[1731462846310,23.83360676,210.52,210.45,23.83360676]
[1731462846512,16.5881,210.54,210.37,0.1]
[1731462846812,16.5881,210.54,210.46,23.83360676]
[1731462846986,23.83360676,210.53,210.45,23.83360676]
[1731462847307,23.83360676,210.5,210.42,23.83360676]
[1731462847492,23.83360676,210.45,210.38,23.83360676]
[1731462847699,23.83360676,210.46,210.39,23.83360676]
[1731462847898,43.83360676,210.45,210.37,23.83360676]
[1731462848207,43.83360676,210.45,210.36,14.9742]
[1731462848208,20.0,210.42,210.36,14.9742]
[1731462848407,20.0,210.42,210.37,23.83360676]
[1731462848711,23.83360676,210.48,210.41,23.83360676]
[1731462848900,20.0,210.47,210.41,23.83360676]
[1731462849088,23.83360676,210.47,210.36,14.9742]
[1731462849288,23.83360676,210.47,210.39,23.83360676]
[1731462849483,23.83360676,210.47,210.4,23.83360676]
[1731462849709,4.7502,210.52,210.46,23.83360676]
[1731462850087,23.83360676,210.53,210.46,23.83360676]
[1731462850301,16.5881,210.54,210.48,23.83360676]
[1731462850503,16.5881,210.54,210.38,0.1]
[1731462850504,23.83360676,210.53,210.46,23.83360676]
[1731462850891,16.5881,210.54,210.48,23.83360676]
[1731462851110,16.5881,210.54,210.47,23.83360676]
[1731462851609,16.5881,210.54,210.47,28.10960676]
[1731462851810,16.5881,210.54,210.48,23.83360676]
[1731462852004,21.3378,210.54,210.48,23.83360676]
[1731462852203,23.83360676,210.58,210.47,14.9663]
[1731462852401,16.1837,210.59,210.53,23.83360676]
[1731462852711,16.1837,210.59,210.54,23.83360676]
[1731462853012,16.1837,210.59,210.53,23.83360676]
[1731462853392,16.1837,210.59,210.54,23.83360676]
[1731462853591,16.1837,210.59,210.53,23.83360676]
[1731462853810,20.9323,210.59,210.52,4.2749]
[1731462854106,23.83360676,210.58,210.51,34.52180676]
[1731462854307,23.83360676,210.58,210.51,10.6882]
[1731462854489,20.0,210.58,210.53,23.83360676]
[1731462854686,16.1837,210.59,210.54,23.83360676]
[1731462854903,16.1837,210.59,210.55,23.83360676]
[1731462855095,16.1837,210.59,210.54,23.83360676]
[1731462855712,16.1837,210.59,210.46,21.4811]
[1731462855713,4.7477,210.63,210.57,23.83360676]
[1731462855911,23.83360676,210.64,210.56,23.83360676]
[1731462856087,16.1837,210.65,210.58,23.83360676]
[1731462856292,23.83360676,210.64,210.57,23.83360676]
[1731462856786,44.76450676,210.65,210.57,23.83360676]
[1731462857008,20.9309,210.65,210.58,23.83360676]
[1731462857613,20.0,210.64,210.58,28.10740676]
[1731462857915,20.0,210.64,210.6,23.83360676]
[1731462858113,16.1837,210.65,210.59,23.83360676]
[1731462858707,16.1837,210.65,210.58,38.79210676]
[1731462859010,16.1837,210.65,210.59,23.83360676]
[1731462859392,20.0,210.64,210.59,23.83360676]
[1731462859602,16.1837,210.65,210.59,23.83360676]
[1731462860192,16.1837,210.65,210.59,28.10720676]
[1731462862411,23.83360676,210.63,210.58,10.6847]
[1731462863311,44.76450676,210.65,210.58,10.6847]
[1731462863615,16.1837,210.65,210.59,23.83360676]
[1731462863821,44.76450676,210.65,210.58,14.9586]
[1731462864715,16.1837,210.65,210.59,23.83360676]
[1731462864916,28.58000676,210.69,210.61,23.83360676]
[1731462866698,28.58000676,210.69,210.61,28.10670676]
[1731462867224,15.8737,210.7,210.61,28.10670676]
[1731462867225,15.933,210.83,210.72,0.1]
[1731462867509,3.97832452,210.89,210.8,23.83360676]
[1731462867693,28.57570676,210.88,210.8,23.83360676]
[1731462867898,27.81193128,210.89,210.81,23.83360676]
[1731462868421,23.83360676,210.89,210.81,23.83360676]
[1731462868596,23.83360676,210.89,210.82,23.83360676]
[1731462868801,22.5232,210.9,210.84,23.83360676]
[1731462869898,22.5232,210.9,210.83,23.83360676]
[1731462870300,22.5232,210.9,210.84,23.83360676]
[1731462870813,27.2649,210.9,210.84,23.83360676]
[1731462871120,43.83360676,210.89,210.81,23.83360676]
[1731462871320,23.83360676,210.88,210.81,23.83360676]
[1731462871622,23.83360676,210.87,210.8,23.83360676]
[1731462871925,23.83360676,210.85,210.78,23.83360676]
[1731462872231,24.7428,210.85,210.79,23.83360676]
[1731462872400,28.57590676,210.87,210.8,23.83360676]
[1731462872604,20.0,210.86,210.81,23.83360676]
[1731462872904,28.57570676,210.88,210.81,23.83360676]
[1731462873208,23.83360676,210.87,210.8,23.83360676]
[1731462873405,23.83360676,210.86,210.79,23.83360676]
[1731462873610,23.83360676,210.87,210.8,23.83360676]
[1731462874123,28.57600676,210.87,210.8,23.83360676]
[1731462874319,4.7424,210.87,210.81,23.83360676]
[1731462874499,43.83360676,210.88,210.81,23.83360676]
[1731462874704,20.0,210.88,210.81,23.83360676]
[1731462875824,23.83360676,210.87,210.8,23.83360676]
[1731462876123,23.83360676,210.83,210.76,23.83360676]
[1731462876310,23.83360676,210.86,210.79,23.83360676]
[1731462876511,4.7424,210.87,210.73,10.6771]
[1731462876705,4.7419,210.89,210.82,23.83360676]
[1731462877425,46.35680676,210.9,210.82,23.83360676]
[1731462877605,23.83360676,210.88,210.81,23.83360676]
[1731462878303,23.83360676,210.85,210.79,10.6739]
[1731462878500,23.83360676,210.81,210.74,23.83360676]
[1731462878921,23.83360676,210.82,210.75,23.83360676]
[1731462879726,23.83360676,210.83,210.76,23.83360676]
[1731462880024,23.83360676,210.84,210.77,23.83360676]
[1731462880224,4.7426,210.86,210.78,23.83360676]
[1731462880225,23.83360676,210.85,210.78,23.83360676]
[1731462880424,28.57620676,210.86,210.78,23.83360676]
[1731462880615,23.83360676,210.85,210.78,23.83360676]
[1731462881012,23.83360676,210.84,210.77,23.83360676]
[1731462881210,23.83360676,210.86,210.79,23.83360676]
[1731462881426,23.83360676,210.85,210.77,28.10350676]
[1731462881926,23.83360676,210.85,210.78,23.83360676]
[1731462882310,48.518684,210.89,210.78,23.83360676]
[1731462882511,23.83360676,210.85,210.78,28.10330676]
[1731462882932,23.83360676,210.87,210.8,23.83360676]
[1731462883224,24.7418,210.89,210.82,23.83360676]
[1731462883810,48.57540676,210.89,210.81,23.83360676]
[1731462884410,48.57540676,210.89,210.79,4.2694]
[1731462884612,48.57540676,210.89,210.81,23.83360676]
[1731462885130,20.0,210.87,210.81,23.83360676]
[1731462885326,20.0,210.87,210.8,23.83360676]
[1731462885628,4.7424,210.87,210.82,23.83360676]
[1731462885831,4.7424,210.87,210.81,23.83360676]
[1731462886829,4.7424,210.87,210.82,23.83360676]
[1731462887012,4.7424,210.87,210.81,23.83360676]
[1731462887224,4.7424,210.87,210.8,28.10300676]
[1731462887927,23.83360676,210.85,210.78,10.6746]
[1731462888315,23.83360676,210.86,210.79,23.83360676]
[1731462888514,23.83360676,210.86,210.78,38.77800676]
[1731462888933,20.0,210.86,210.8,23.83360676]
[1731462889232,20.0,210.86,210.78,14.9444]
[1731462889233,4.742,210.89,210.83,23.83360676]
[1731462889707,22.5232,210.9,210.85,23.83360676]
[1731462889912,51.09840676,210.9,210.83,23.83360676]
[1731462890124,22.5232,210.9,210.84,23.83360676]
[1731462890325,28.03466053,210.98,210.88,23.83360676]
[1731462890326,46.19960676,210.95,210.88,23.83360676]
[1731462890633,46.19960676,210.95,210.87,23.83360676]
[1731462891531,4.7407,210.94,210.87,28.10150676]
[1731462893216,20.0,210.96,210.91,23.83360676]
[1731462893417,4.7403,210.96,210.9,23.83360676]
[1731462893620,4.7403,210.96,210.89,23.83360676]
[1731462895033,4.7403,210.96,210.89,28.10110676]
[1731462895237,20.0,210.98,210.91,23.83360676]
[1731462895533,28.57290676,211.0,210.91,23.83360676]
[1731462896230,23.83360676,211.0,210.91,23.83360676]
[1731462896537,16.0018,211.01,210.91,23.83360676]
[1731462897138,16.0018,211.01,210.91,28.10080676]
[1731462898119,20.7409,211.01,210.91,28.10080676]
[1731462899627,4.7398,210.98,210.91,28.10080676]
[1731462899826,28.57340676,210.98,210.91,28.10080676]
[1731462900529,23.83360676,210.97,210.91,4.2672]
[1731462900727,28.57380676,210.96,210.89,34.50260676]
[1731462900922,23.83360676,210.96,210.89,38.77020676]
[1731462901436,16.6372,211.05,210.91,23.83360676]
[1731462901631,23.83360676,211.03,210.91,23.83360676]
[1731462902018,23.83360676,211.02,210.91,23.83360676]
[1731462902244,4.7398,210.98,210.91,23.83360676]
[1731462902446,23.83360676,210.98,210.91,23.83360676]
[1731462902745,4.7393,211.0,210.91,28.10080676]
[1731462903039,4.74,210.97,210.91,28.10080676]
[1731462903224,4.7404,210.95,210.89,34.50260676]
[1731462903544,23.83360676,210.97,210.9,23.83360676]
[1731462904450,4.7407,210.94,210.87,28.10140676]
[1731462904626,4.7407,210.94,210.88,23.83360676]
[1731462904828,4.7407,210.94,210.88,28.10130676]
[1731462905137,4.7407,210.94,210.85,23.83360676]
[1731462905138,24.31364086,210.92,210.85,23.83360676]
[1731462905323,24.31364086,210.92,210.86,23.83360676]
[1731462905324,5.2212341,210.92,210.86,23.83360676]
[1731462905527,0.4800341,210.92,210.86,23.83360676]
[1731462905924,0.4800341,210.92,210.88,23.83360676]
[1731462906150,0.4800341,210.92,210.89,23.83360676]
[1731462906522,0.4800341,210.92,210.86,23.83360676]
[1731462906935,0.4800341,210.92,210.79,23.776884]
[1731462907245,0.4800341,210.92,210.87,23.83360676]
[1731462907833,0.4800341,210.92,210.9,23.83360676]
[1731462908443,0.4800341,210.92,210.89,23.83360676]
[1731462909235,0.4800341,210.92,210.9,23.83360676]
[1731462909543,0.4800341,210.92,210.89,28.10110676]
[1731462911131,20.0,210.89,210.77,4.00854687]
[1731462911345,23.83360676,210.85,210.71,0.1]
[1731462911533,23.83360676,210.87,210.78,23.83360676]
[1731462911732,20.0,210.89,210.71,0.2]
[1731462911733,43.83360676,210.89,210.82,23.83360676]
[1731462912128,43.83360676,210.89,210.8,23.83360676]
[1731462912647,23.83360676,210.87,210.78,23.83360676]
[1731462913544,23.83360676,210.86,210.79,23.83360676]
[1731462913729,23.83360676,210.85,210.77,23.83360676]
[1731462913936,23.83360676,210.83,210.75,23.83360676]
[1731462914134,23.83360676,210.84,210.77,23.83360676]
[1731462914348,23.83360676,210.85,210.78,23.83360676]
[1731462914647,28.57590676,210.87,210.8,23.83360676]
[1731462915228,23.83360676,210.85,210.78,23.83360676]
[1731462915726,23.83360676,210.85,210.79,14.9437]
[1731462916929,23.83360676,210.82,210.79,10.6741]
[1731462917453,4.7426,210.86,210.73,23.776884]
[1731462917454,23.83360676,210.81,210.76,4.2701]
[1731462917653,23.83360676,210.81,210.74,14.9468]
[1731462917868,23.83360676,210.81,210.74,38.78040676]
[1731462920236,23.83360676,210.81,210.73,23.83360676]
[1731462921059,23.83360676,210.81,210.74,23.83360676]
[1731462921357,23.83360676,210.81,210.74,10.6765]
[1731462921534,23.83360676,210.8,210.74,10.6765]
[1731462922457,23.83360676,210.79,210.74,10.6765]
[1731462922954,14.84005862,210.76,210.71,4.2712]
[1731462923159,14.84005862,210.75,210.69,14.9505]
[1731462923347,14.84005862,210.72,210.66,4.2722]
[1731462923535,15.5855,210.8,210.67,14.84005862]
[1731462923536,14.84005862,210.73,210.67,14.84005862]
[1731462923736,14.84005862,210.73,210.66,4.2722]
[1731462923737,14.84005862,210.75,210.68,14.84005862]
[1731462923954,14.84005862,210.73,210.66,25.52075862]
[1731462924161,14.84005862,210.69,210.62,33.98257934]
[1731462924537,0.1,210.78,210.67,14.84005862]
[1731462924538,14.84005862,210.74,210.67,14.84005862]
[1731462924751,11.8606,210.79,210.62,23.41542072]
[1731462925063,14.84005862,210.73,210.66,14.84005862]
[1731462925263,14.84005862,210.74,210.67,14.84005862]
[1731462925853,15.5855,210.8,210.69,14.84005862]
[1731462925854,14.84005862,210.76,210.69,14.84005862]
[1731462926062,19.58465862,210.77,210.71,14.84005862]
[1731462926837,19.58465862,210.77,210.7,14.84005862]
[1731462927238,19.58465862,210.77,210.67,4.2718]
[1731462927239,14.84005862,210.76,210.69,19.11145862]
[1731462927458,14.84005862,210.75,210.69,4.2714]
[1731462927843,14.84005862,210.76,210.69,19.11145862]
[1731462928243,19.58475862,210.76,210.69,19.11145862]
[1731462929163,14.84005862,210.77,210.7,14.84005862]
[1731462929364,35.16955862,210.8,210.72,14.84005862]
[1731462929542,35.16955862,210.8,210.73,14.84005862]
[1731462930051,35.16955862,210.8,210.72,14.84005862]
[1731462930365,14.84005862,210.8,210.73,14.84005862]
[1731462930546,21.6889,210.86,210.79,14.84005862]
[1731462930748,26.4314,210.86,210.79,14.84005862]
[1731462931056,21.6889,210.86,210.79,14.84005862]
[1731462931251,14.84005862,210.89,210.82,14.84005862]
[1731462931453,21.5684,210.91,210.76,0.1]
[1731462931454,41.14985862,210.91,210.83,14.84005862]
[1731462931642,14.84005862,210.9,210.83,14.84005862]
[1731462932258,0.4800341,210.92,210.86,14.84005862]
[1731462932462,0.4800341,210.92,210.91,14.84005862]
[1731462934362,0.4800341,210.92,210.91,19.10725862]
[1731462934870,0.4800341,210.92,210.91,27.95904506]
[1731462935954,0.4800341,210.92,210.91,4.2672]
[1731462936156,0.4800341,210.92,210.88,4.2677]
[1731462936471,0.4800341,210.92,210.86,27.95994506]
[1731462936672,0.4800341,210.92,210.86,38.63044506]
[1731462937460,0.4800341,210.92,210.88,23.69184506]
[1731462938570,0.4800341,210.92,210.89,23.69184506]
[1731462939265,0.4800341,210.92,210.88,10.6695]
[1731462939471,0.4800341,210.92,210.88,34.36134506]
[1731462940268,23.69184506,210.91,210.84,27.96044506]
[1731462940965,24.17187916,210.92,210.85,23.69184506]
[1731462941271,0.4800341,210.92,210.88,23.69184506]
[1731462941471,0.4800341,210.92,210.86,23.69184506]
[1731462942554,0.4800341,210.92,210.87,23.69184506]
[1731462942755,0.4800341,210.92,210.87,27.95974506]
[1731462943043,24.17187916,210.92,210.85,27.96014506]
[1731462943466,23.69184506,210.91,210.85,4.2683]
[1731462943766,23.69184506,210.91,210.84,38.63194506]
[1731462943953,23.69184506,210.9,210.84,10.6715]
[1731462944353,23.69184506,210.9,210.84,14.9401]
[1731462944860,23.69184506,210.91,210.84,38.63194506]
[1731462945254,28.91317916,210.92,210.85,23.69184506]
[1731462945662,23.69184506,210.91,210.84,23.69184506]
[1731462945867,28.91317916,210.92,210.85,23.69184506]
[1731462946851,28.91317916,210.92,210.85,27.96014506]
[1731462947054,0.4800341,210.92,210.87,23.69184506]
[1731462947262,0.4800341,210.92,210.88,23.69184506]
[1731462947470,0.4800341,210.92,210.87,23.69184506]
[1731462948267,24.17187916,210.92,210.85,38.63114506]
[1731462948577,23.69184506,210.9,210.85,14.9393]
[1731462948756,23.69184506,210.91,210.85,14.9393]
[1731462949680,23.69184506,210.91,210.84,23.69184506]
[1731462949853,28.91297916,210.92,210.85,23.69184506]
[1731462950170,28.91297916,210.92,210.83,23.69184506]
[1731462950171,23.69184506,210.91,210.83,23.69184506]
[1731462950371,23.69184506,210.9,210.83,23.69184506]
[1731462950554,23.69184506,210.9,210.82,23.69184506]
[1731462950754,28.91297916,210.92,210.84,23.69184506]
[1731462951373,23.69184506,210.91,210.84,23.69184506]
[1731462951582,28.43324506,210.91,210.84,27.96044506]
[1731462952079,23.69184506,210.9,210.83,23.69184506]
[1731462952384,23.69184506,210.88,210.81,10.6731]
[1731462952759,23.69184506,210.86,210.81,10.6731]
[1731462953561,23.69184506,210.86,210.78,23.69184506]
[1731462953875,28.43434506,210.86,210.79,23.69184506]
[1731462954060,23.69184506,210.87,210.8,23.69184506]
[1731462954457,4.7422,210.88,210.81,23.69184506]
[1731462954656,4.7422,210.88,210.82,23.69184506]
[1731462954976,23.69184506,210.89,210.81,23.69184506]
[1731462955161,28.43334506,210.9,210.82,23.69184506]
[1731462955675,23.69184506,210.89,210.82,23.69184506]
[1731462955875,23.69184506,210.88,210.81,23.69184506]
[1731462956175,23.69184506,210.89,210.81,23.69184506]
[1731462956570,23.69184506,210.88,210.81,23.69184506]
[1731462956877,14.83277019,210.82,210.75,10.6761]
[1731462957062,14.83277019,210.81,210.75,10.6761]
[1731462957375,14.83277019,210.79,210.73,4.2707]
[1731462957563,14.83277019,210.77,210.71,14.949]
[1731462957761,14.83277019,210.79,210.71,29.78177019]
[1731462957960,14.83277019,210.8,210.73,14.83277019]
[1731462958569,14.83277019,210.79,210.72,14.83277019]
[1731462958872,19.57677019,210.8,210.71,10.678]
[1731462959080,19.57677019,210.8,210.72,14.83277019]
[1731462959479,14.83277019,210.79,210.72,14.83277019]
[1731462959672,14.83277019,210.78,210.72,4.271]
[1731462959982,14.83277019,210.77,210.71,10.678]
[1731462960486,14.83277019,210.75,210.67,25.51277019]